bitfinex/quotes_ETHUSD_20250725
["timestamp","ask_amount","ask_price","bid_price","bid_amount"]
[1753422408738,10.13580223,3631.2,3631.1,0.1776]
[1753422409836,7.38189168,3631.2,3631.1,0.1776]
[1753422410354,10.13580223,3631.2,3631.1,0.1776]
[1753422411245,7.38189168,3631.2,3631.1,0.1776]
[1753422411560,10.13580223,3631.2,3631.1,0.1776]
[1753422412615,7.38189168,3631.2,3631.1,0.1776]
[1753422412824,7.38289168,3631.2,3631.1,0.1776]
[1753422413146,10.13680223,3631.2,3631.1,0.1776]
[1753422413966,10.62840223,3631.2,3631.1,0.1776]
[1753422414252,11.88900223,3631.2,3631.1,0.1776]
[1753422417429,11.88900223,3631.2,3631.1,0.04]
[1753422417818,12.02660223,3631.2,3631.1,0.04]
[1753422418155,12.02660223,3631.2,3630.6,0.001]
[1753422418156,2.7542898,3630.7,3630.6,0.001]
[1753422418358,10.9166898,3630.7,3630.6,0.001]
[1753422418575,11.8566898,3630.7,3630.6,0.001]
[1753422421575,2.75399743,3631.1,3630.6,0.5937]
[1753422421741,4.249,3631.0,3630.7,0.78991637]
[1753422422089,3.0,3630.8,3630.7,0.4551]
[1753422422264,3.0,3630.8,3630.6,0.3786]
[1753422422585,4.249,3630.7,3630.6,0.001]
[1753422422965,7.249,3630.7,3630.6,0.5937]
[1753422423443,7.249,3630.7,3630.6,0.1386]
[1753422423843,10.9432898,3630.7,3630.6,0.1386]
[1753422424044,10.9432898,3630.7,3630.6,0.001]
[1753422424277,10.4948898,3630.7,3630.6,0.001]
[1753422424577,6.6942898,3630.7,3630.6,0.001]
[1753422424783,10.0032898,3630.7,3630.6,0.001]
[1753422425476,3.0,3630.7,3630.6,0.001]
[1753422425662,7.249,3630.7,3630.6,0.001]
[1753422426676,3.0,3630.7,3630.6,0.001]
[1753422426847,7.249,3630.7,3630.6,1.2737]
[1753422427052,7.249,3630.7,3630.6,1.6513]
[1753422427454,7.249,3630.7,3630.6,1.2737]
[1753422427763,7.249,3630.7,3630.6,0.001]
[1753422427976,11.7622898,3630.7,3630.6,0.001]
[1753422428162,13.4162898,3630.7,3630.6,0.001]
[1753422428754,3.54609328,3630.3,3630.2,0.001]
[1753422428950,10.80209328,3630.3,3630.2,0.001]
[1753422429284,11.74209328,3630.3,3630.2,0.001]
[1753422433557,18.93209325,3630.3,3630.2,0.001]
[1753422434057,6.55336916,3630.2,3630.1,1e-08]
[1753422434276,16.39576913,3630.2,3630.1,1e-08]
[1753422434494,16.88736913,3630.2,3630.1,1e-08]
[1753422434789,6.55359682,3629.9,3629.8,1e-08]
[1753422435092,17.99859679,3629.9,3629.8,1e-08]
[1753422435588,18.93859679,3629.9,3629.8,1e-08]
[1753422435993,19.48859679,3629.9,3629.8,1e-08]
[1753422436623,1.3237,3629.4,3629.1,1e-08]
[1753422436761,6.52912819,3629.2,3629.1,1e-08]
[1753422437163,3.52935598,3628.9,3628.8,1e-08]
[1753422437465,18.17781772,3628.9,3628.8,1e-08]
[1753422437673,19.09801772,3628.9,3628.8,1e-08]
[1753422437991,19.23561772,3628.9,3628.8,1e-08]
[1753422439397,33.73561772,3628.9,3628.8,1e-08]
[1753422439999,29.48161772,3628.9,3628.8,1e-08]
[1753422440158,18.17581772,3628.9,3628.8,1e-08]
[1753422440584,18.66771772,3628.9,3628.8,1e-08]
[1753422441073,19.09601772,3628.9,3628.8,1e-08]
[1753422442695,18.89155595,3628.9,3628.8,1e-08]
[1753422444996,6.50710786,3628.7,3628.6,1e-08]
[1753422445167,10.89870786,3628.7,3628.6,1e-08]
[1753422445363,11.81890786,3628.7,3628.6,1e-08]
[1753422445565,8.78285976,3628.5,3628.4,1e-08]
[1753422445898,27.67345976,3628.5,3628.4,1e-08]
[1753422446267,28.59365976,3628.5,3628.4,1e-08]
[1753422446890,28.59365976,3628.5,3627.2,0.461]
[1753422446891,2.75676494,3627.5,3626.7,2.75730541]
[1753422447063,0.1376,3628.1,3627.2,1.2673]
[1753422447263,3.0,3627.9,3627.5,0.7716]
[1753422447601,3.0,3628.3,3628.0,0.1376]
[1753422447602,5.75632112,3628.1,3628.0,0.1376]
[1753422447766,2.75664351,3627.6,3627.5,0.7716]
[1753422448099,10.02364351,3627.6,3627.5,0.1376]
[1753422448583,7.268,3627.6,3627.5,0.1376]
[1753422448790,7.268,3627.6,3627.5,0.5986]
[1753422448791,3.0,3627.6,3627.5,0.5986]
[1753422449104,7.18999997,3628.8,3627.6,0.8322]
[1753422449105,1.66759424,3628.7,3627.6,0.8322]
[1753422449324,5.75664351,3627.6,3627.5,0.1376]
[1753422449491,5.7567955,3627.4,3627.3,0.8176]
[1753422449687,10.0277955,3627.4,3627.3,0.8176]
[1753422450023,10.0277955,3627.4,3627.3,0.9552]
[1753422450224,10.0277955,3627.4,3627.3,0.1376]
[1753422451288,10.5196955,3627.4,3627.3,0.1376]
[1753422452102,11.3167955,3627.4,3627.3,0.1376]
[1753422452302,11.3167955,3627.4,3627.1,0.04]
[1753422452303,5.7569475,3627.2,3627.1,0.04]
[1753422452488,10.0279475,3627.2,3627.1,0.04]
[1753422454002,10.5198475,3627.2,3627.1,0.04]
[1753422454608,10.9481475,3627.2,3627.1,0.04]
[1753422454807,11.0857475,3627.2,3627.1,0.04]
[1753422455126,18.27574747,3627.2,3627.1,0.04]
[1753422455742,18.27374747,3627.2,3627.1,0.04]
[1753422456230,17.84544747,3627.2,3627.1,0.04]
[1753422456431,17.35354747,3627.2,3627.1,0.04]
[1753422456957,13.08454747,3627.2,3627.1,0.04]
[1753422457227,14.45899997,3627.2,3627.1,0.1776]
[1753422457445,17.21594747,3627.2,3627.1,0.6386]
[1753422457791,10.18999997,3627.2,3627.1,0.6386]
[1753422457998,11.46199997,3627.2,3627.1,0.6386]
[1753422458197,7.18999997,3627.2,3627.1,1.792]
[1753422458421,10.18999997,3627.2,3627.1,1.792]
[1753422458630,14.46199997,3627.2,3627.1,1.792]
[1753422459539,7.272,3627.2,3627.1,1.792]
[1753422459910,3.0,3627.2,3627.1,1.792]
[1753422460111,7.27,3627.2,3627.1,1.792]
[1753422461945,7.27,3627.2,3627.1,4.54902351]
[1753422462155,7.268,3627.2,3627.1,2.24701685]
[1753422462454,7.268,3627.2,3627.1,1.792]
[1753422462636,7.268,3627.2,3627.1,4.54902351]
[1753422463018,4.268,3627.2,3627.1,4.54902351]
[1753422463222,0.13427227,3627.4,3627.2,2.75694328]
[1753422463433,4.268,3627.3,3627.2,3.5955475]
[1753422463721,4.39787934,3628.0,3627.6,3.56589044]
[1753422464058,1.53827267,3628.0,3627.9,0.1376]
[1753422464258,8.80527267,3628.0,3627.9,0.1376]
[1753422464465,8.80527267,3628.0,3627.9,0.9762]
[1753422464844,1.39787934,3628.0,3627.9,5.23047156]
[1753422465041,0.4919,3629.6,3628.6,2.75585513]
[1753422465250,2.75543087,3629.2,3628.6,0.768]
[1753422465463,4.277,3629.1,3628.7,0.461]
[1753422465772,4.277,3629.0,3628.9,2.75565598]
[1753422465934,4.277,3629.0,3628.9,3.59425598]
[1753422466133,4.277,3629.0,3628.9,3.73185598]
[1753422466348,7.277,3629.0,3628.9,3.73185598]
[1753422467962,7.277,3629.0,3628.9,0.9762]
[1753422468262,7.277,3629.0,3628.9,0.1376]
[1753422468465,7.277,3629.0,3628.9,0.5861]
[1753422468664,7.277,3629.0,3628.9,3.71935598]
[1753422468851,7.277,3629.0,3628.9,4.44367215]
[1753422469177,7.277,3629.0,3628.9,0.1376]
[1753422469534,7.277,3629.0,3628.9,0.9637]
[1753422469934,7.277,3629.0,3628.9,3.71935598]
[1753422470168,7.41222877,3629.0,3628.9,3.71935598]
[1753422471271,7.41222877,3629.0,3628.9,0.9637]
[1753422471640,7.41222877,3629.0,3628.9,0.5861]
[1753422472267,7.41222877,3629.0,3628.9,0.1376]
[1753422473051,10.16780881,3629.0,3628.9,0.1376]
[1753422473567,7.41222877,3629.0,3628.9,0.1376]
[1753422473767,7.41222877,3629.0,3628.9,0.5861]
[1753422475268,7.41222877,3629.0,3628.9,0.9637]
[1753422476248,7.41222877,3629.0,3628.9,0.5861]
[1753422478773,7.41222877,3629.0,3628.9,0.1376]
[1753422479791,10.62020881,3629.0,3628.9,0.1376]
[1753422480786,11.08860881,3629.0,3628.9,0.1376]
[1753422481562,3.0,3628.6,3628.0,3.57688811]
[1753422481869,4.266,3628.5,3628.1,2.75622372]
[1753422482066,4.266,3628.5,3628.2,0.4485]
[1753422482265,7.266,3628.5,3628.4,0.1376]
[1753422485977,3.0,3628.5,3628.4,2.89363571]
[1753422486302,3.0,3628.5,3628.4,5.04861192]
[1753422487290,3.0,3628.5,3628.4,1.35]
[1753422487488,3.0,3628.5,3628.4,0.1376]
[1753422489273,3.13802967,3628.5,3628.4,0.1376]
[1753422490425,6.34638943,3628.5,3628.4,0.1376]
[1753422490574,6.81478943,3628.5,3628.4,0.1376]
[1753422492517,7.33125082,3628.5,3628.4,0.1376]
[1753422492713,2.75634296,3628.0,3627.4,2.75679093]
[1753422492902,2.75616558,3628.3,3627.4,2.75679093]
[1753422492903,3.0,3627.8,3627.4,2.75679093]
[1753422493213,3.0,3627.6,3627.5,0.4485]
[1753422493575,3.0,3627.6,3627.5,3.3428195]
[1753422494678,3.0,3627.6,3627.5,0.5861]
[1753422494908,3.0,3627.6,3627.5,0.1376]
[1753422495128,3.4524,3627.6,3627.5,0.1376]
[1753422495904,6.20904351,3627.6,3627.5,0.1376]
[1753422496303,6.67744351,3627.6,3627.5,0.1376]
[1753422499077,3.9208,3627.6,3627.5,0.1376]
[1753422499500,3.4524,3627.6,3627.5,0.1376]
[1753422501226,4.262,3627.6,3627.5,0.1376]
[1753422501700,7.262,3627.6,3627.5,0.1376]
[1753422501908,7.736,3627.6,3627.5,0.1376]
[1753422503529,7.262,3627.6,3627.5,0.1376]
[1753422504758,0.1388571,3627.8,3627.5,4.4657195]
[1753422504967,0.1388571,3627.8,3627.7,2.75656752]
[1753422505259,3.0,3628.3,3627.7,0.1376]
[1753422505571,3.0,3628.3,3628.2,0.1376]
[1753422505904,7.735,3628.3,3628.2,0.1376]
[1753422506638,7.261,3628.3,3628.2,0.1376]
[1753422507543,4.261,3628.3,3628.2,0.1376]
[1753422507743,4.261,3628.3,3628.2,3.32198764]
[1753422507945,4.261,3628.3,3628.2,0.5658]
[1753422508146,4.261,3628.3,3628.2,0.1376]
[1753422508936,4.259,3628.3,3628.2,2.89377571]
[1753422509141,4.259,3628.3,3628.2,0.1376]
[1753422509709,4.259,3628.3,3628.2,3.32198764]
[1753422510417,4.259,3628.3,3628.2,0.5658]
[1753422511028,4.259,3628.3,3628.2,0.1376]
[1753422511713,4.259,3628.3,3628.2,2.89378764]
[1753422512046,4.259,3628.3,3628.2,3.32198764]
[1753422512229,4.39593406,3628.3,3628.2,0.5658]
[1753422512621,4.39593406,3628.3,3628.2,0.1376]
[1753422513424,4.86993406,3628.3,3628.2,0.1376]
[1753422514430,4.39593406,3628.3,3628.2,0.1376]
[1753422514632,4.39193406,3628.3,3628.2,2.89378764]
[1753422515355,3.13693406,3628.3,3628.2,3.32198764]
[1753422515560,7.39193406,3628.3,3628.2,3.32198764]
[1753422515761,0.002,3628.3,3628.2,5.75251087]
[1753422518481,0.002,3628.3,3628.2,4.94671087]
[1753422518678,0.002,3628.3,3628.2,5.37491087]
[1753422518857,0.002,3628.3,3628.2,5.75251087]
[1753422520160,0.002,3628.3,3628.2,6.30251087]
[1753422520898,0.002,3628.3,3628.2,10.55751087]
[1753422529400,0.002,3628.3,3628.2,5.49671087]
[1753422529560,0.002,3628.3,3628.2,2.89378764]
[1753422529884,0.4772,3628.3,3628.2,0.1376]
[1753422530200,0.927,3628.3,3628.2,0.1376]
[1753422532503,3.68311167,3628.3,3628.2,0.1376]
[1753422532702,7.44571167,3628.3,3628.2,0.1376]
[1753422533071,3.7626,3627.7,3627.5,0.001]
[1753422533562,3.7626,3627.7,3627.6,0.1376]
[1753422533971,4.254,3627.7,3627.6,0.1376]
[1753422534199,4.7292,3627.7,3627.6,0.1376]
[1753422534568,8.179,3627.7,3627.6,0.1376]
[1753422535466,8.179,3627.7,3627.6,2.89424351]
[1753422535801,7.7292,3627.7,3627.6,2.89424351]
[1753422537101,8.179,3627.7,3627.6,2.89424351]
[1753422539866,0.002,3628.3,3627.6,1.45570342]
[1753422540102,0.002,3628.3,3628.2,2.75618764]
[1753422540307,3.002,3628.3,3628.2,2.89378764]
[1753422540792,3.4772,3628.3,3628.2,2.89378764]
[1753422540998,3.4772,3628.3,3628.2,0.1376]
[1753422541210,3.4772,3628.3,3628.2,2.89378764]
[1753422541370,4.7331,3628.3,3628.2,0.1376]
[1753422541716,7.48921167,3628.3,3628.2,0.1376]
[1753422542873,4.7331,3628.3,3628.2,0.1376]
[1753422543068,11.74321167,3628.3,3628.2,0.1376]
[1753422543595,8.9871,3628.3,3628.2,0.1376]
[1753422544187,11.74321167,3628.3,3628.2,0.1376]
[1753422545018,8.9871,3628.3,3628.2,0.1376]
[1753422547002,8.5373,3628.3,3628.2,0.1376]
[1753422547388,8.9871,3628.3,3628.2,0.1376]
[1753422549986,8.5373,3628.3,3628.2,0.1376]
[1753422550186,4.256,3628.3,3628.2,2.89378764]
[1753422550418,4.256,3628.3,3628.2,1.32294277]
[1753422550597,8.181,3628.3,3628.2,0.1376]
[1753422552422,8.9854,3628.3,3628.2,0.1376]
[1753422556324,4.7314,3628.3,3628.2,0.1376]
[1753422556626,8.5356,3628.3,3628.2,0.1376]
[1753422557198,8.9632,3628.3,3628.2,0.1376]
[1753422558734,8.5356,3628.3,3628.2,0.1376]
[1753422558934,7.7312,3628.3,3628.2,0.1376]
[1753422559437,11.43137306,3628.3,3628.2,0.1376]
[1753422559644,11.68721167,3628.3,3628.2,0.1376]
[1753422560147,6.5285636,3628.1,3628.0,0.001]
[1753422560348,10.7815636,3628.1,3628.0,0.001]
[1753422560540,11.6640636,3628.1,3628.0,0.001]
[1753422562429,11.8016636,3628.1,3628.0,0.001]
[1753422565831,11.94080887,3628.1,3628.0,0.001]
[1753422566038,7.68780887,3628.1,3628.0,0.001]
[1753422566240,11.94180887,3628.1,3628.0,0.001]
[1753422567716,4.55020887,3628.1,3628.0,0.001]
[1753422567916,8.80320887,3628.1,3628.0,0.1386]
[1753422568123,11.80320887,3628.1,3628.0,0.1386]
[1753422571632,11.80320887,3628.1,3628.0,0.001]
[1753422572435,11.94080887,3628.1,3628.0,0.001]
[1753422574165,7.12260887,3628.1,3628.0,0.001]
[1753422574360,11.37560887,3628.1,3628.0,0.001]
[1753422574569,3.13914527,3628.1,3628.0,0.001]
[1753422574770,4.39214527,3628.1,3628.0,1.6402]
[1753422575083,4.39214527,3628.1,3628.0,1.80422]
[1753422575573,4.39214527,3628.1,3628.0,1.42662]
[1753422575773,4.39214527,3628.1,3628.0,4.56055958]
[1753422576360,4.39214527,3628.1,3628.0,1.80422]
[1753422576747,4.39214527,3628.1,3628.0,4.56055958]
[1753422578683,7.39214527,3628.1,3628.0,0.001]
[1753422578885,10.60330887,3628.1,3628.0,0.001]
[1753422579049,7.84704527,3628.1,3628.0,0.001]
[1753422579249,7.39214527,3628.1,3628.0,0.001]
[1753422581108,7.39214527,3628.1,3628.0,0.4326]
[1753422581414,7.39114527,3628.1,3628.0,4.70825139]
[1753422581902,7.39114527,3628.1,3628.0,1.95191181]
[1753422582067,7.39114527,3628.1,3628.0,1.57431181]
[1753422582264,7.39114527,3628.1,3628.0,0.8238]
[1753422582468,7.39114527,3628.1,3628.0,0.001]
[1753422583465,7.39114527,3628.1,3628.0,2.75733958]
[1753422583803,7.39114527,3628.1,3628.0,0.8102]
[1753422583970,7.39114527,3628.1,3628.0,0.001]
[1753422584556,7.39114527,3628.1,3628.0,0.1386]
[1753422584757,11.42140887,3628.1,3628.0,0.1386]
[1753422585001,11.84900887,3628.1,3628.0,0.1386]
[1753422590231,11.42140887,3628.1,3628.0,0.1386]
[1753422590432,10.14740887,3628.1,3628.0,0.1386]
[1753422590634,0.13914527,3628.1,3628.0,0.1386]
[1753422590833,0.13914527,3628.1,3628.0,3.73533958]
[1753422590834,4.252,3628.1,3628.0,3.73533958]
[1753422591031,0.002,3628.3,3628.1,2.75625723]
[1753422591333,4.251,3628.2,3628.1,3.59665723]
[1753422591694,4.251,3628.2,3628.1,3.73425723]
[1753422591918,4.251,3628.2,3628.1,0.978]
[1753422592331,0.002,3628.3,3628.1,3.73426264]
[1753422592609,4.251,3628.2,3628.1,0.5152]
[1753422592952,4.251,3628.2,3628.1,3.2714636]
[1753422593168,4.251,3628.2,3628.1,3.7342636]
[1753422593609,4.251,3628.2,3628.1,0.978]
[1753422594442,4.251,3628.2,3628.1,3.7342636]
[1753422594642,0.002,3628.3,3628.2,2.75618764]
[1753422594848,7.253,3628.3,3628.2,1.6662]
[1753422595723,7.253,3628.3,3628.2,4.42238764]
[1753422596847,3.002,3628.3,3628.2,4.42238764]
[1753422597069,7.253,3628.3,3628.2,4.42238764]
[1753422597237,3.0,3628.2,3628.1,0.1376]
[1753422597570,4.38764506,3628.3,3628.1,0.1376]
[1753422598270,7.25,3628.2,3628.1,0.1376]
[1753422600395,7.25,3628.2,3628.1,0.6004]
[1753422600541,7.25,3628.2,3628.1,3.3566636]
[1753422600742,7.25,3628.2,3628.1,0.6004]
[1753422601556,7.25,3628.2,3628.1,3.3566636]
[1753422601760,7.25,3628.2,3628.1,4.08633023]
[1753422601960,3.0,3628.2,3628.1,4.46393023]
[1753422602260,7.25,3628.2,3628.1,4.46393023]
[1753422602642,3.0,3628.2,3628.1,4.08633023]
[1753422602843,3.0,3628.2,3628.1,5.25993023]
[1753422602844,0.002,3628.2,3628.1,5.25993023]
[1753422603243,0.002,3628.2,3628.1,5.28749286]
[1753422603458,0.002,3628.2,3628.1,5.25993023]
[1753422603754,7.7356,3628.2,3628.1,0.1376]
[1753422604095,7.252,3628.2,3628.1,2.8938636]
[1753422605021,7.252,3628.2,3628.1,3.3566636]
[1753422606467,3.002,3628.2,3628.1,3.3566636]
[1753422606674,0.002,3628.2,3628.1,5.25102519]
[1753422607699,0.002,3628.2,3628.1,5.27858782]
[1753422608100,1e-08,3628.2,3628.1,5.80102519]
[1753422608304,1e-08,3628.2,3628.1,10.05002519]
[1753422609596,1e-08,3628.3,3628.2,3.30618764]
[1753422609915,1e-08,3628.3,3628.2,7.07156684]
[1753422610768,0.002,3629.1,3629.0,3.55158004]
[1753422610993,0.042,3629.9,3629.7,3.54234862]
[1753422611330,0.042,3629.9,3629.7,4.3096974]
[1753422611622,0.042,3629.9,3629.7,5.1500974]
[1753422612116,0.042,3629.9,3629.7,5.17764788]
[1753422612329,0.042,3629.9,3629.7,4.7724974]
[1753422612637,0.4856,3629.8,3629.7,0.1376]
[1753422612794,5.1955,3629.8,3629.7,0.1376]
[1753422612999,8.1955,3629.8,3629.7,0.1376]
[1753422614026,8.1955,3629.8,3628.6,0.4628]
[1753422614027,0.8155,3629.6,3629.0,2.75557326]
[1753422614235,0.9455,3629.5,3629.0,2.75557326]
[1753422614432,0.9455,3629.5,3628.7,2.75579941]
[1753422614433,0.8155,3629.6,3628.5,3.21869151]
[1753422614581,3.0,3629.3,3628.4,0.7565]
[1753422614785,3.0,3629.1,3628.9,2.75558714]
[1753422615107,3.0,3629.1,3629.0,2.75558004]
[1753422615297,3.0,3629.1,3629.0,2.89318004]
[1753422615492,3.4836,3629.1,3629.0,0.1376]
[1753422615684,3.9455,3629.1,3629.0,0.1376]
[1753422615886,4.7592,3629.1,3629.0,0.1376]
[1753422616289,7.51470411,3629.1,3629.0,0.1376]
[1753422616488,4.7592,3629.1,3629.0,0.1376]
[1753422617095,4.7592,3629.1,3628.6,2.75586833]
[1753422617297,3.8137,3629.1,3629.0,0.1376]
[1753422617901,4.7102,3629.1,3629.0,0.1376]
[1753422618125,4.2664,3629.1,3629.0,0.1376]
[1753422618533,5.5134,3629.1,3629.0,0.1376]
[1753422618688,8.5134,3629.1,3629.0,0.1376]
[1753422619588,8.9572,3629.1,3629.0,0.1376]
[1753422620098,11.71270411,3629.1,3629.0,0.1376]
[1753422620301,0.8255,3628.9,3628.3,2.75608723]
[1753422620496,3.0,3628.7,3628.2,2.75617116]
[1753422620828,0.4527,3628.6,3628.5,2.75595406]
[1753422621226,0.4527,3628.6,3628.5,2.89355406]
[1753422621390,0.4527,3628.6,3628.5,0.1376]
[1753422621933,3.0,3628.7,3628.6,2.75588381]
[1753422622436,0.58749089,3629.1,3628.7,2.75576949]
[1753422622589,0.58749089,3629.1,3628.5,0.1376]
[1753422622791,7.247,3629.0,3628.5,0.4458]
[1753422623028,3.0,3628.9,3628.8,2.75567687]
[1753422623210,4.247,3629.0,3628.9,2.75565598]
[1753422623438,4.247,3629.0,3628.8,0.6334951]
[1753422623439,4.6997,3629.0,3628.8,0.1376]
[1753422623629,1.7018,3628.9,3628.8,0.1376]
[1753422623839,4.7018,3628.9,3628.8,0.1376]
[1753422624017,7.45745598,3628.9,3628.8,0.1376]
[1753422629351,0.778,3628.1,3628.0,0.001]
[1753422629527,5.025,3628.1,3628.0,0.001]
[1753422629739,5.4777,3628.1,3628.0,0.1386]
[1753422630157,5.9215,3628.1,3628.0,0.1386]
[1753422633996,7.247,3628.1,3628.0,3.34073958]
[1753422634291,7.247,3628.1,3628.0,4.44583202]
[1753422635972,0.002,3629.0,3628.6,2.75584703]
[1753422636174,3.0,3628.8,3628.6,2.75584703]
[1753422636489,7.247,3628.7,3628.6,2.75584703]
[1753422636661,7.247,3628.7,3628.5,3.51753107]
[1753422636858,7.247,3628.7,3628.6,2.89348381]
[1753422637375,7.247,3628.7,3628.6,0.1376]
[1753422637578,11.71670786,3628.7,3628.6,0.1376]
[1753422638099,0.8174,3628.5,3628.0,0.001]
[1753422638247,2.7562636,3628.1,3628.0,0.001]
[1753422638454,10.8206636,3628.1,3628.0,0.001]
[1753422638679,11.7171636,3628.1,3628.0,0.1386]
[1753422640281,11.2733636,3628.1,3628.0,0.1386]
[1753422640651,11.7171636,3628.1,3628.0,0.1386]
[1753422640847,4.2701,3628.1,3628.0,0.1386]
[1753422641073,7.247,3628.1,3628.0,0.1386]
[1753422642004,7.247,3628.1,3628.0,0.5844]
[1753422642182,7.247,3628.1,3628.0,4.44680193]
[1753422642183,3.0,3628.1,3628.0,4.44680193]
[1753422642357,7.247,3628.1,3628.0,4.44680193]
[1753422642897,7.247,3628.1,3628.0,4.06920193]
[1753422643380,7.247,3628.1,3628.0,4.44680193]
[1753422644155,7.247,3628.1,3628.0,1.31286235]
[1753422644352,7.247,3628.1,3628.0,0.1386]
[1753422644816,7.6997,3628.1,3628.0,0.1386]
[1753422646400,10.4559636,3628.1,3628.0,0.1386]
[1753422646706,8.9121,3628.1,3628.0,0.1386]
[1753422647219,3.0,3628.1,3628.0,2.89493958]
[1753422647373,7.247,3628.1,3628.0,3.99556641]
[1753422648904,7.247,3628.1,3628.0,4.37316641]
[1753422649125,3.0,3628.1,3628.0,4.37316641]
[1753422649276,7.246,3628.1,3628.0,4.37316641]
[1753422651111,7.246,3628.1,3628.0,3.54256641]
[1753422651776,7.246,3628.1,3628.0,3.99556641]
[1753422653304,7.246,3628.1,3628.0,3.54256641]
[1753422656575,7.246,3628.1,3628.0,3.53501641]
[1753422656774,7.246,3628.1,3628.0,2.88738958]
[1753422657011,7.7304,3628.1,3628.0,0.13105]
[1753422657326,7.246,3628.1,3628.0,2.88738958]
[1753422658087,7.246,3628.1,3628.0,0.13105]
[1753422658398,7.246,3628.1,3628.0,2.88738958]
[1753422659405,7.246,3628.1,3628.0,0.58405]
[1753422659619,7.246,3628.1,3628.0,0.13105]
[1753422659910,7.246,3628.1,3628.0,2.88738958]
[1753422660479,7.246,3628.1,3628.0,0.13105]
[1753422660679,7.7304,3628.1,3628.0,2.88738958]
[1753422661187,7.7304,3628.1,3628.0,0.13105]
[1753422661483,8.2052,3628.1,3628.0,0.13105]
[1753422661722,7.7304,3628.1,3628.0,0.13105]
[1753422662122,7.245,3628.1,3628.0,2.88738958]
[1753422662347,7.245,3628.1,3628.0,0.13105]
[1753422663122,7.7294,3628.1,3628.0,0.13105]
[1753422663328,8.2042,3628.1,3628.0,0.13105]
[1753422664094,7.7294,3628.1,3628.0,0.13105]
[1753422664294,7.7294,3628.1,3628.0,2.88738958]
[1753422664828,7.7294,3628.1,3628.0,0.13105]
[1753422666627,3.4844,3628.1,3628.0,2.88738958]
[1753422666928,7.245,3628.1,3628.0,3.90477707]
[1753422667331,7.245,3628.1,3628.0,2.88738958]
[1753422669547,3.0,3628.1,3628.0,2.88738958]
[1753422669855,3.0,3628.1,3628.0,3.71798958]
[1753422670059,7.245,3628.1,3628.0,3.71798958]
[1753422670235,7.245,3628.1,3628.0,3.34038958]
[1753422670626,7.245,3628.1,3628.0,2.88738958]
[1753422670826,8.2042,3628.1,3628.0,0.13105]
[1753422671423,8.2042,3628.1,3628.0,2.88738958]
[1753422671424,7.7294,3628.1,3628.0,2.88738958]
[1753422671653,7.245,3628.1,3628.0,2.88738958]
[1753422673262,3.0,3628.1,3628.0,4.31217645]
[1753422673558,7.244,3628.1,3628.0,4.76517645]
[1753422675942,7.7284,3628.1,3628.0,3.49707645]
[1753422676182,7.7284,3628.1,3628.0,2.88738958]
[1753422677172,3.4844,3628.1,3628.0,2.88738958]
[1753422677381,7.7284,3628.1,3628.0,2.88738958]
[1753422677873,3.0,3628.1,3628.0,2.88738958]
[1753422678077,7.244,3628.1,3628.0,2.88738958]
[1753422678842,3.0,3628.1,3628.0,4.99927936]
[1753422679046,3.9277,3628.1,3628.0,2.88738958]
[1753422680161,3.4901,3628.1,3628.0,2.88738958]
[1753422680485,3.0,3628.1,3628.0,2.88738958]
[1753422680868,3.4901,3628.1,3628.0,2.88738958]
[1753422685484,3.0,3628.1,3628.0,2.88738958]
[1753422685853,3.4901,3628.1,3628.0,2.88738958]
[1753422689607,3.0,3628.1,3628.0,2.88738958]
[1753422689805,3.0,3628.1,3628.0,3.35808958]
[1753422689967,3.002,3628.1,3628.0,3.35808958]
[1753422690173,7.244,3628.1,3628.0,3.35808958]
[1753422690981,3.002,3628.1,3628.0,5.83558936]
[1753422691409,3.002,3628.1,3628.0,10.07758936]
[1753422692714,0.4921,3628.9,3628.8,2.75573192]
[1753422692715,0.002,3628.9,3628.8,2.75573192]
[1753422692881,0.002,3628.9,3628.8,3.22543192]
[1753422693087,0.002,3628.9,3628.8,8.89202542]
[1753422693284,0.002,3628.9,3628.8,4.65002542]
[1753422693595,0.9297,3628.9,3628.8,0.1376]
[1753422693912,0.9297,3628.9,3628.8,2.89333192]
[1753422695005,8.1717,3628.9,3628.8,0.1376]
[1753422695781,10.92735598,3628.9,3628.8,0.1376]
[1753422696109,11.71055598,3628.9,3628.8,0.1376]
[1753422696483,0.7832,3628.6,3628.0,0.001]
[1753422696678,4.242,3628.5,3628.0,2.75731206]
[1753422697106,7.242,3628.5,3628.4,0.1376]
[1753422697478,8.1697,3628.5,3628.4,0.1376]
[1753422698816,11.71205976,3628.5,3628.4,0.1376]
[1753422699022,3.7864,3628.4,3628.3,0.1376]
[1753422699190,1.7141,3628.4,3628.3,0.1376]
[1753422699518,7.47015151,3628.4,3628.3,0.1376]
[1753422699715,4.7141,3628.4,3628.3,0.1376]
[1753422700277,4.2765,3628.4,3628.3,0.1376]
[1753422701812,4.241,3628.4,3628.3,2.89371167]
[1753422702414,7.241,3628.4,3628.3,2.89371167]
[1753422703115,7.7311,3628.4,3628.3,2.89371167]
[1753422704016,7.241,3628.4,3628.3,2.89371167]
[1753422704315,3.0,3628.4,3628.3,2.89371167]
[1753422704479,7.241,3628.4,3628.3,2.89371167]
[1753422705186,7.241,3628.4,3628.3,3.36341167]
[1753422705388,7.241,3628.4,3628.3,4.70954642]
[1753422705581,3.0,3628.4,3628.3,4.70954642]
[1753422705781,7.241,3628.4,3628.3,5.08714642]
[1753422706207,7.241,3628.4,3628.3,4.70954642]
[1753422706887,0.13576224,3628.8,3628.7,2.75580786]